fUST/lending_fUST_20251119
["ID","MTS","AMOUNT","RATE_DAILY","PERIOD"]
[394369969,1763500242341,-500.0,0.00049315,120]
[394369971,1763500242350,-500.0,0.00049315,120]
[394369973,1763500242359,-500.0,0.00049315,120]
[394369975,1763500242368,-516.95745059,0.00049315,120]
[394369977,1763500242377,-500.0,0.00049315,120]
[394369979,1763500242387,-500.0,0.00049315,120]
[394369981,1763500242395,-345.62030376,0.00049315,120]
[394369983,1763500242404,-500.0,0.00049315,120]
[394369985,1763500242413,-525.61271696,0.00049315,120]
[394369987,1763500242422,-500.0,0.00049315,120]
[394369989,1763500242432,-500.0,0.00049315,120]
[394369991,1763500242441,-500.0,0.00049315,120]
[394369993,1763500242450,-500.0,0.00049315,120]
[394369994,1763500242460,-500.0,0.00049315,120]
[394369997,1763500242470,-303.28791203,0.00049315,120]
[394369998,1763500242479,-1457.2,0.00049315,120]
[394370000,1763500242488,-523.83,0.00049315,7]
[394370002,1763500242497,-500.0,0.00049315,120]
[394370004,1763500242506,-500.0,0.00049315,120]
[394370006,1763500242516,-500.0,0.00049315,120]
[394370008,1763500242525,-500.0,0.00049315,120]
[394370010,1763500242534,-500.0,0.00049315,120]
[394370012,1763500242543,-500.0,0.00049315,120]
[394370014,1763500242552,-225.28639915,0.00049315,120]
[394370016,1763500242561,-506.6724034,0.00049315,120]
[394370018,1763500242571,-500.0,0.00049315,120]
[394370020,1763500242580,-6855.08,0.00049315,120]
[394370022,1763500242589,-518.0075481,0.00049315,120]
[394370024,1763500242599,-1543.9,0.00049315,2]
[394370026,1763500242608,-500.0,0.00049315,120]
[394370028,1763500242617,-534.55381625,0.00049315,120]
[394370030,1763500242626,-500.0,0.00049315,120]
[394370032,1763500242636,-500.0,0.00049315,120]
[394370034,1763500242645,-500.0,0.00049315,120]
[394370036,1763500242654,-500.0,0.00049315,7]
[394370038,1763500242663,-543.53094482,0.00049315,120]
[394370040,1763500242672,-500.0,0.00049315,120]
[394370042,1763500242681,-500.0,0.00049315,120]
[394370044,1763500242690,-500.0,0.00049315,120]
[394370046,1763500242699,-301.5764969,0.00049315,120]
[394370048,1763500242708,-500.0,0.00049315,120]
[394370050,1763500242717,-527.56659843,0.00049315,120]
[394370052,1763500242727,-500.0,0.00049315,30]
[394370054,1763500242736,-500.0,0.00049315,120]
[394370056,1763500242746,-500.0,0.00049315,120]
[394370059,1763500242755,-500.0,0.00049315,120]
[394370060,1763500242765,-500.0,0.00049315,120]
[394370062,1763500242774,-500.0,0.00049315,120]
[394370064,1763500242784,-2215.86,0.00049315,120]
[394370066,1763500242793,-522.1331802,0.00049315,120]
[394370068,1763500242802,-500.0,0.00049315,120]
[394370070,1763500242812,-610.79213326,0.00049315,2]
[394370072,1763500242821,-500.0,0.00049315,120]
[394370074,1763500242831,-500.0,0.00049315,2]
[394370076,1763500242840,-500.0,0.00049315,120]
[394370078,1763500242849,-12904.22260926,0.0004934,2]
[394370080,1763500242858,-600.0,0.0004938,2]
[394370082,1763500242867,-197394.36178234,0.0004944,30]
[394370119,1763500243212,-157.14925854,0.000328,2]
[394370233,1763500246879,-17637.19074146,0.000328,2]
[394370234,1763500246888,-4641.32165854,0.000397,2]
[394370235,1763500261583,196.13,5e-05,2]
[394370236,1763500261892,196.13,5.1e-05,2]
[394370237,1763500262167,196.13,5.3e-05,2]
[394370238,1763500262474,196.13,5.4e-05,2]
[394370239,1763500262757,196.13,5.6e-05,2]
[394370240,1763500263035,196.13,5.7e-05,2]
[394370241,1763500263594,196.13,5.9e-05,2]
[394370242,1763500263710,196.13,6e-05,2]
[394370243,1763500263990,196.13,6.1e-05,2]
[394370244,1763500264320,196.13,6.3e-05,2]
[394370245,1763500264628,196.13,6.4e-05,2]
[394370246,1763500264909,196.13,6.6e-05,2]
[394370247,1763500265292,196.13,6.7e-05,2]
[394370248,1763500265644,196.13,6.9e-05,2]
[394370249,1763500265921,196.13,7e-05,2]
[394370250,1763500266349,196.13,7.1e-05,2]
[394370251,1763500266670,196.13,7.3e-05,2]
[394370252,1763500266958,196.13,7.4e-05,2]
[394370253,1763500267300,196.13,7.6e-05,2]
[394370254,1763500267575,196.13,7.7e-05,2]
[394370255,1763500267949,196.13,7.9e-05,2]
[394370256,1763500268319,196.13,8e-05,2]
[394370257,1763500268591,196.13,8.1e-05,2]
[394370258,1763500268853,196.13,8.3e-05,2]
[394370259,1763500269128,196.13,8.4e-05,2]
[394370260,1763500269395,196.13,8.6e-05,2]
[394370261,1763500269664,196.13,8.7e-05,2]
[394370262,1763500270542,196.13,8.9e-05,2]
[394370263,1763500270878,196.13,9e-05,2]
[394370264,1763500271146,196.13,9.1e-05,2]
[394370265,1763500271421,196.13,9.3e-05,2]
[394370266,1763500271706,196.13,9.4e-05,2]
[394370267,1763500271979,196.13,9.6e-05,2]
[394370268,1763500272296,196.13,9.7e-05,2]
[394370269,1763500272573,196.13,9.9e-05,2]
[394370270,1763500272882,196.13,0.0001,2]
[394370271,1763500273153,196.13,0.000101,2]
[394370272,1763500274141,196.13,0.000103,2]
[394370273,1763500274458,196.13,0.000104,2]
[394370274,1763500274729,196.13,0.000106,2]
[394370275,1763500275013,196.13,0.000107,2]
[394370276,1763500275294,196.13,0.000109,2]
[394370277,1763500275560,196.13,0.00011,2]
[394370278,1763500275832,196.13,0.000111,2]
[394370279,1763500276130,196.13,0.000113,2]
[394370280,1763500276168,196.13,0.000114,2]
[394370281,1763500277057,196.13,0.000116,2]
[394370282,1763500277366,196.13,0.000117,2]
[394370283,1763500277648,196.13,0.000119,2]
[394370284,1763500321611,196.09,5e-05,2]
[394370327,1763500846836,-433.83042975,0.00014364,2]
[394370328,1763500848993,-170.54440839,0.00014364,2]
[394370329,1763500851834,-169.11842653,0.0001422,2]
[394370330,1763500853685,-469.56801186,0.0001422,2]
[394370331,1763500857602,-264.88426667,0.0001422,2]
[394370332,1763500859273,-96.37362569,0.0001422,2]
[394370333,1763500859296,-478.08618238,0.00014364,2]
[394370334,1763500862015,-259.2295785,0.00014364,2]
[394370335,1763500864292,-92.08416148,0.00014364,2]
[394370336,1763500864312,-306.89062764,0.00014509,2]
[394370337,1763500866645,-480.89691765,0.00014509,2]
[394370338,1763500871900,-184.130986,0.00014364,2]
[394370339,1763500874055,-389.74954484,0.00014364,2]
[394370340,1763500876321,-250.74223289,0.0001422,2]
[394370341,1763500879252,-168.0341074,0.0001422,2]
[394370342,1763500881272,-215.67774804,0.0001422,2]
[394370343,1763500884519,-242.73639536,0.0001422,2]
[394370344,1763500886717,-65.56266317,0.0001422,2]
[394370345,1763500886739,-316.27803446,0.00014364,2]
[394370346,1763500888194,-200.68193262,0.00014364,2]
[394370347,1763500889980,-36.04363494,0.00014364,2]
[394370348,1763500890002,-253.40045754,0.00014509,2]
[394370349,1763500893382,-311.45121328,0.00014509,2]
[394370350,1763500988041,-81.13554439,0.00014509,2]
[394370351,1763500988063,-94.07300666,0.00015068,2]
[394370352,1763500989996,-215.04014986,0.00015068,2]
[394370353,1763500992127,-381.31846725,0.00015068,2]
[394370354,1763500995640,-109.56837623,0.00015068,2]
[394370355,1763500995662,-145.94468755,0.00015105,2]
[394370356,1763501000203,-163.89783906,0.00014954,2]
[394370357,1763501001756,-397.11252533,0.00014954,2]
[394370358,1763501004940,-411.16683762,0.00014954,2]
[394370359,1763501004964,-194.28136467,0.00015105,2]
[394370361,1763501007525,-425.35151863,0.00015105,2]
[394370362,1763501007597,5000.0,0.00014944,2]
[394370363,1763501009128,-216.22520794,0.00015105,2]
[394370364,1763501010228,923.64655,0.00013699,2]
[394370365,1763501013316,-168.06380642,0.00015105,2]
[394370366,1763501014821,-206.48039651,0.00015105,2]
[394370367,1763501016247,3353.13789354,0.00014944,2]
[394370368,1763501031986,5000.0,0.00015095,2]
[394370369,1763501039784,206.48039651,0.00015095,2]
[394370372,1763501301811,287.8321203,0.0001,2]
[394370373,1763501374124,-2090.94520086,0.0001485,2]
[394370374,1763501374145,-2090.94520086,0.00015,2]
[394370375,1763501374166,-77.42777878,0.00015105,2]
[394370524,1763501440403,68.92482321,0.00015777,2]
[394370526,1763501440885,-3e-08,0.00015777,2]
[394370527,1763501440896,-144.41922293,0.00015777,2]
[394370528,1763501440905,-196.04051788,0.00016038,2]
[394370529,1763501440914,-196.04051788,0.000162,2]
[394370530,1763501440924,-300.0,0.00016999,2]
[394370531,1763501440933,-150.0,0.00016999,2]
[394370532,1763501440943,-457.49910877,0.00016999,2]
[394370533,1763501440954,-742.50089123,0.00016999,2]
[394370534,1763501440964,-9851.92832322,0.00017,2]
[394370535,1763501440973,-196.04051788,0.00017546,2]
[394370536,1763501440983,-150.0,0.00017646,2]
[394370537,1763501440992,-230.0,0.00018567,2]
[394370538,1763501441002,-923.64655,0.00020187,2]
[394370539,1763501441011,-6207.15601675,0.00022,5]
[394370540,1763501441020,-423.90563871,0.000225,2]
[394370541,1763501441030,-5356.37065866,0.00023,2]
[394370542,1763501441039,-1726.94041998,0.00024,2]
[394370543,1763501441047,-463.2160267,0.00024,2]
[394370544,1763501441057,-1080.72176018,0.00024,30]
[394370545,1763501441065,-3500.77560895,0.00024132,10]
[394370569,1763501443585,-780.720698,0.00019962,2]
[394370571,1763501443595,-213.34404617,0.0002339,2]
[394370573,1763501443604,-750.55439105,0.00024132,10]
[394370574,1763501443614,-837.27285203,0.00024132,10]
[394370575,1763501443625,-2705.50714797,0.00024132,10]
[394370576,1763501443635,-500.0,0.00024141,2]
[394370578,1763501443644,-302.15132193,0.00024141,2]
[394370579,1763501443653,-511.44889785,0.00024141,2]
[394370581,1763501443662,-39117.74916197,0.00024142,2]
[394370591,1763501456282,17316.0,0.00039678,30]
[394370593,1763501460494,223.98005806,0.00032,120]
[394370596,1763501546079,195.64000348,0.00032,120]
[394370597,1763501549596,150.0,0.00039677,30]
[394370599,1763501605265,164.21721062,0.00032,120]
[394370600,1763501724860,160.5247746,0.00032,120]
[394370601,1763501726234,177.83846929,0.00032,120]
[394370602,1763501727588,1029.0,0.00027999,120]
[394370603,1763501728914,1029.0,0.00029399,120]
[394370605,1763501730236,1029.0,0.00030869,120]
[394370606,1763501731537,1029.0,0.00032413,120]
[394370607,1763501735573,240000.0,0.00039872,20]
[394370608,1763501776940,179.18404645,0.00032,120]
[394370610,1763501861624,195.64000348,0.00032,120]
[394370611,1763501866562,5500.16,0.00039872,20]
[394370612,1763501882588,-157.78090848,0.00014535,2]
[394370613,1763501887700,-62.32909152,0.00014535,2]
[394370614,1763501887722,-220.11,0.00014535,2]
[394370615,1763501887745,-88.76216823,0.00014535,2]
[394370616,1763502040505,177.83846928,0.00032,120]
[394370617,1763502091667,179.18404645,0.00032,120]
[394370618,1763502176111,195.64000347,0.00032,120]
[394370619,1763502292784,3390.0,0.000161,3]
[394370620,1763502347730,-131.34783177,0.00014535,2]
[394370621,1763502347753,-87.92885308,0.00014802,2]
[394370622,1763502352576,-149.67044601,0.00014802,2]
[394370623,1763502352598,-113.72689692,0.00015068,2]
[394370624,1763502354385,-348.34924502,0.00015068,2]
[394370625,1763502357717,-246.42635548,0.00015068,2]
[394370626,1763502359912,-91.49750258,0.00015068,2]
[394370627,1763502359934,-98.08460512,0.0001574,2]
[394370628,1763502361560,-250.12318378,0.0001574,2]
[394370629,1763502362295,300.0,0.00015739,2]
[394370630,1763502364960,-263.27327639,0.0001574,2]
[394370631,1763502367240,-300.0,0.0001574,2]
[394370632,1763502369349,-903.17910129,0.0001574,2]
[394370633,1763502372782,-296.82089871,0.0001574,2]
[394370634,1763502375445,-450.0,0.0001574,2]
[394370635,1763502378530,-189.0370999,0.0001574,2]
[394370636,1763502382436,-479.54642108,0.0001574,2]
[394370637,1763502384165,-213.59475807,0.0001574,2]
[394370638,1763502386336,-300.0,0.0001574,2]
[394370639,1763502388881,-354.67857351,0.0001574,2]
[394370640,1763502390576,-307.09728476,0.0001574,2]
[394370641,1763502395709,-248.27374537,0.0001574,2]
[394370642,1763502399427,-550.545713,0.0001574,2]
[394370643,1763502401045,-172.12249522,0.0001574,2]
[394370644,1763502403060,-200.2,0.0001574,2]
[394370645,1763502405301,-265.76602723,0.0001574,2]
[394370646,1763502407640,179.18404645,0.00032,120]
[394370647,1763502408615,-171.83081564,0.0001574,2]
[394370648,1763502411725,-516.48784597,0.0001574,2]
[394370649,1763502414011,-160.51832996,0.0001574,2]
[394370650,1763502415590,-216.96010571,0.0001574,2]
[394370651,1763502419948,-210.80121567,0.0001574,2]
[394370652,1763502422278,300.0,0.00015739,2]
[394370653,1763502422809,-241.33147702,0.0001574,2]
[394370654,1763502423398,176.52244031,0.000151,2]
[394370655,1763502424410,-669.75774501,0.0001574,2]
[394370656,1763502426506,-211.8912201,0.0001574,2]
[394370657,1763502429974,-194.47980349,0.0001574,2]
[394370658,1763502431436,-214.01584474,0.0001574,2]
[394370659,1763502433158,-780.36190651,0.0001574,2]
[394370660,1763502435261,-644.01680676,0.0001574,2]
[394370661,1763502437953,-392.70515437,0.0001574,2]
[394370662,1763502440977,-170.26510481,0.0001574,2]
[394370663,1763502445116,-329.73489519,0.0001574,2]
[394370664,1763502449298,-453.09162327,0.0001574,2]
[394370665,1763502450784,-310.41833647,0.0001574,2]
[394370666,1763502454450,-206.73428585,0.0001574,2]
[394370667,1763502456299,-356.96282307,0.0001574,2]
[394370668,1763502460250,-160.43527447,0.0001574,2]
[394370669,1763502464312,-284.30953419,0.0001574,2]
[394370670,1763502466733,-243.54353299,0.0001574,2]
[394370671,1763502467322,5000.0,0.0001574,2]
[394370672,1763502468237,1200.0,0.00015739,2]
[394370673,1763502469408,-531.26706152,0.0001574,2]
[394370674,1763502471040,-241.88303702,0.0001574,2]
[394370675,1763502472844,-154.84721429,0.0001574,2]
[394370676,1763502475125,-387.51183085,0.0001574,2]
[394370677,1763502476065,3023.48755969,0.0001574,2]
[394370678,1763502476088,1976.51244031,0.0001574,2]
[394370679,1763502476902,-300.0,0.0001574,2]
[394370680,1763502479963,-368.04522985,0.0001574,2]
[394370681,1763502481314,-345.2844067,0.0001574,2]
[394370682,1763502484051,-320.45531104,0.0001574,2]
[394370683,1763502484421,2777.17839026,0.0001574,2]
[394370684,1763502485678,-181.88495492,0.0001574,2]
[394370685,1763502487188,-152.45002919,0.0001574,2]
[394370686,1763502490738,195.64000348,0.00032,120]
[394370687,1763502491260,-257.1029938,0.0001574,2]
[394370688,1763502492243,5000.0,0.0001574,2]
[394370689,1763502493001,-229.46608671,0.0001574,2]
[394370690,1763502496097,-247.09279327,0.0001574,2]
[394370691,1763502498396,-423.15883253,0.0001574,2]
[394370692,1763502500165,-381.9042425,0.0001574,2]
[394370693,1763502500590,246.31916943,0.0001574,2]
[394370694,1763502500616,4753.68083057,0.0001574,2]
[394370695,1763502501956,-4030.3491482,0.0001574,2]
[394370696,1763502502111,-1939.3117036,0.0001574,2]
[394370697,1763502502140,-235.84731311,0.00015758,2]
[394370698,1763502502404,-164.52089245,0.00015777,2]
[394370699,1763502505208,-351.01278781,0.00015777,2]
[394370700,1763502506876,-648.52944818,0.00015777,2]
[394370701,1763502515718,5000.0,0.00015758,2]
[394370702,1763502515905,-90.9550723,0.00015777,2]
[394370703,1763502515935,-143.07683091,0.00016044,2]
[394370704,1763502519337,-156.92316909,0.00016044,2]
[394370705,1763502519358,-3.51210538,0.00016045,2]
[394370706,1763502521499,-1903.62025938,0.00016045,2]
[394370707,1763502523527,5000.0,0.00015984,2]
[394370708,1763502523849,-418.42110984,0.00016045,2]
[394370709,1763502525314,-412.0120492,0.00016045,2]
[394370710,1763502528762,-384.04335551,0.00016045,2]
[394370711,1763502532064,-561.75389923,0.00016045,2]
[394370712,1763502534166,-255.8699612,0.00016045,2]
[394370713,1763502536582,-248.38451544,0.00016045,2]
[394370714,1763502538797,5000.0,0.00015985,2]
[394370715,1763502546604,1918.99121247,0.00015985,2]
[394370716,1763502555594,817.62386043,0.00015985,2]
[394370717,1763502563949,2263.3949271,0.00015985,2]
[394370718,1763502563974,2736.6050729,0.00015985,2]
[394370719,1763502586606,5000.0,0.00015985,2]
[394370720,1763502596805,1075.93475801,0.00015777,2]
[394370721,1763502609897,1187.47016909,0.00015985,2]
[394370722,1763502609922,3812.52983091,0.00015985,2]
[394370750,1763502631619,-300.0,0.00016143,2]
[394370752,1763502631628,-300.0,0.00016143,2]
[394370754,1763502631638,-341.52117222,0.00016143,2]
[394370756,1763502631649,-858.47882778,0.00016143,2]
[394370758,1763502631659,-300.0,0.00016143,2]
[394370760,1763502631668,-10077.12165358,0.00016144,2]
[394370762,1763502631688,-685.4426246,0.00016144,2]
[394370780,1763502633210,5000.0,0.00015985,2]
[394371104,1763502640594,-3e-08,0.00016144,2]
[394371365,1763502643034,-141.73250859,0.00016144,2]
[394371499,1763502656206,1187.48016909,0.00015985,2]
[394371500,1763502656229,3812.51983091,0.00015985,2]
[394371501,1763502667882,500.0,0.00015739,2]
[394371502,1763502678470,5000.0,0.00015985,2]
[394371503,1763502701227,687.49016909,0.00015985,2]
[394371504,1763502701252,1850.60402046,0.00015985,2]
[394371505,1763502726989,179.18404644,0.00032,120]
[394371506,1763502843011,-977.61646573,0.00016142,2]
[394371507,1763502845138,-222.38353427,0.00016142,2]
[394371508,1763502845159,-77.61646573,0.00016142,2]
[394371509,1763502847273,-222.38353427,0.00016142,2]
[394371510,1763502847298,-77.61646573,0.00016143,2]
[394371511,1763502858087,-153.51390112,0.00016143,2]
[394371512,1763502858117,-276.84,0.00016143,2]
[394371513,1763502858551,-6721.30320385,0.00016143,2]
[394371514,1763502858640,-10000.01,0.00016143,2]
[394371515,1763502861115,-10000.01,0.00016143,2]
[394371516,1763502861332,-10000.01,0.00016143,2]
[394371517,1763502864145,-1865.26210851,0.00016143,2]
[394371518,1763502864177,-500.0,0.00016143,2]
[394371519,1763502864207,-500.0,0.00016143,2]
[394371520,1763502864238,-500.0,0.00016143,2]
[394371521,1763502864269,-337.70914343,0.00016143,2]
[394371522,1763502864299,-500.0,0.00016143,2]
[394371523,1763502864328,-500.0,0.00016143,2]
[394371524,1763502864357,-94.06749612,0.00016143,2]
[394371525,1763502864510,-405.93250388,0.00016143,2]
[394371526,1763502864540,-500.0,0.00016143,2]
[394371527,1763502864572,-500.0,0.00016143,2]
[394371528,1763502864604,-500.0,0.00016143,2]
[394371529,1763502864634,-500.0,0.00016143,2]
[394371530,1763502864662,-500.0,0.00016143,2]
[394371531,1763502864693,-500.0,0.00016143,2]
[394371532,1763502864723,-572.86809219,0.00016143,2]
[394371533,1763502864755,-500.0,0.00016143,2]
[394371534,1763502864786,-360.92252707,0.00016143,2]
[394371535,1763502865157,-45.00997681,0.00016143,2]
[394371536,1763502865196,-360.92252707,0.00016143,2]
[394371537,1763502865217,-94.06749612,0.00016143,2]
[394371538,1763502865227,-226.4962576,0.00016143,2]
[394371539,1763502896566,922.40543031,0.00015777,2]
[394371540,1763502945412,-501.80832001,0.00016043,2]
[394371541,1763502945445,-1200.0,0.00016043,2]
[394371542,1763502945533,-5673.98792967,0.00016044,2]
[394371543,1763502945643,-3259.21195833,0.00016044,2]
[394371544,1763502945674,-151.0,0.00016136,2]
[394371545,1763502945707,-151.0,0.00016136,2]
[394371546,1763502945739,-151.0,0.00016136,2]
[394371547,1763502945771,-151.0,0.00016136,2]
[394371548,1763502945802,-151.0,0.00016136,2]
[394371549,1763502945835,-151.0,0.00016136,2]
[394371550,1763502945866,-151.0,0.00016136,2]
[394371551,1763502945898,-231.06163583,0.00016136,2]
[394371552,1763502945934,-194.72792766,0.00016136,2]
[394371553,1763502945965,-216.00695636,0.00016142,2]
[394371554,1763502946077,-83.99304364,0.00016142,2]
[394371555,1763502946107,-300.0,0.00016142,2]
[394371556,1763502946140,-500.0,0.00016143,2]
[394371557,1763502946170,-500.0,0.00016144,2]
[394371558,1763502946203,-230.31867691,0.00016146,2]
[394371559,1763502946379,-500.0,0.00016146,2]
[394371560,1763502946417,-500.0,0.00016146,2]
[394371561,1763502946450,-537.52323816,0.00016146,2]
[394371562,1763502946481,-500.0,0.00016146,2]
[394371563,1763502946517,-500.0,0.00016146,2]
[394371564,1763502946546,-500.0,0.00016146,2]
[394371565,1763502946577,-196.34008258,0.00016146,2]
[394371566,1763502946679,-303.65991742,0.00016146,2]
[394371567,1763502946714,-500.0,0.00016146,2]
[394371568,1763502946745,-500.0,0.00016146,2]
[394371569,1763502946780,-500.0,0.00016146,2]
[394371570,1763502946813,-500.0,0.00016146,2]
[394371571,1763502946848,-500.0,0.00016146,2]
[394371572,1763502946881,-500.0,0.00016146,2]
[394371573,1763502946912,-500.0,0.00016146,2]
[394371574,1763502946951,-500.0,0.00016146,2]
[394371575,1763502946984,-500.0,0.00016146,2]
[394371576,1763502947098,-500.0,0.00016146,2]
[394371577,1763502947128,-500.0,0.00016146,2]
[394371578,1763502947164,-500.0,0.00016146,2]
[394371579,1763502947196,-500.0,0.00016146,2]
[394371580,1763502947232,-500.0,0.00016146,2]
[394371581,1763502947269,-500.0,0.00016146,2]
[394371582,1763502947301,-200.80504146,0.00016146,2]
[394371583,1763502947333,-500.0,0.00016146,2]
[394371584,1763502947365,-500.0,0.00016146,2]
[394371585,1763502947404,-500.0,0.00016146,2]
[394371586,1763502947437,-98.39991708,0.00016146,2]
[394371587,1763502947528,-401.60008292,0.00016146,2]
[394371588,1763502947562,-500.0,0.00016146,2]
[394371589,1763502947598,-500.0,0.00016146,2]
[394371590,1763502947633,-500.0,0.00016146,2]
[394371591,1763502947668,-500.0,0.00016146,2]
[394371592,1763502947701,-500.0,0.00016146,2]
[394371593,1763502947735,-500.0,0.00016146,2]
[394371594,1763502947771,-500.0,0.00016146,2]
[394371595,1763502947805,-500.0,0.00016146,2]
[394371596,1763502947842,-500.0,0.00016146,2]
[394371597,1763502947979,-500.0,0.00016146,2]
[394371598,1763502948020,-500.0,0.00016146,2]
[394371599,1763502948059,-500.0,0.00016146,2]
[394371600,1763502948097,-500.0,0.00016146,2]
[394371601,1763502948132,-500.0,0.00016146,2]
[394371602,1763502948167,-500.0,0.00016146,2]
[394371603,1763502948208,-500.0,0.00016146,2]
[394371604,1763502948249,-229.97996302,0.00016146,2]
[394371605,1763502948290,-500.0,0.00016146,2]
[394371606,1763502948330,-500.0,0.00016146,2]
[394371607,1763502948368,-40.05007396,0.00016146,2]
[394371608,1763502948436,-459.94992604,0.00016146,2]
[394371609,1763502948474,-500.0,0.00016146,2]
[394371610,1763502948614,-500.0,0.00016146,2]
[394371611,1763502948653,-500.0,0.00016146,2]
[394371612,1763502948692,-500.0,0.00016146,2]
[394371613,1763502948731,-500.0,0.00016146,2]
[394371614,1763502948769,-200.0,0.00016146,2]
[394371615,1763502948799,-500.0,0.00016146,2]
[394371616,1763502948830,-500.0,0.00016146,2]
[394371617,1763502948863,-500.0,0.00016146,2]
[394371618,1763502950301,-196.34008258,0.00016147,2]
[394371619,1763502950371,-200.0,0.00016147,2]
[394371620,1763502950385,-500.0,0.00016147,2]
[394371621,1763502950414,-500.0,0.00016147,2]
[394371622,1763502950428,-500.0,0.00016147,2]
[394371623,1763502950443,-680.11014792,0.00016147,2]
[394371624,1763502950510,-10000.01,0.00016147,2]
[394371625,1763502950532,-10000.01,0.00016147,2]
[394371626,1763502950545,-2208.4591941,0.00016147,2]
[394371627,1763502950554,-501.81896579,0.00016173,2]
[394371628,1763502950563,-500.0,0.00016173,2]
[394371629,1763502950573,-500.0,0.00016173,2]
[394371630,1763502950582,-500.0,0.00016173,2]
[394371631,1763502950591,-500.0,0.00016173,2]
[394371632,1763502950600,-500.0,0.00016173,2]
[394371633,1763502950609,-500.0,0.00016173,2]
[394371634,1763502950618,-534.12852606,0.00016173,2]
[394371635,1763502950627,-515.06662059,0.00016173,2]
[394371636,1763502950636,-500.0,0.00016173,2]
[394371637,1763502950645,-500.0,0.00016173,2]
[394371638,1763502950654,-500.0,0.00016173,2]
[394371639,1763502950663,-500.0,0.00016173,2]
[394371640,1763502950672,-500.0,0.00016173,2]
[394371641,1763502950681,-508.76188657,0.00016173,2]
[394371642,1763502950690,-231.77480689,0.00016173,2]
[394371643,1763502950705,-268.22519311,0.00016173,2]
[394371644,1763502950715,-500.0,0.00016173,2]
[394371645,1763502950724,-500.0,0.00016173,2]
[394371646,1763502950735,-178.47079806,0.00016173,2]
[394371647,1763502950748,-295.20840448,0.00016367,2]
[394371648,1763502950870,-500.0,0.00016367,2]
[394371649,1763502950879,-276.84,0.00016417,2]
[394371650,1763502950888,-500.0,0.00016418,2]
[394371651,1763502950897,-500.0,0.00016438,2]
[394371652,1763502950906,-500.0,0.00016438,2]
[394371653,1763502950915,-500.0,0.00016438,2]
[394371654,1763502950924,-331.27706532,0.00016438,2]
[394371655,1763502950934,-500.0,0.00016438,2]
[394371656,1763502950943,-370.62651572,0.00016438,2]
[394371657,1763502950952,-207.84739063,0.00016438,2]
[394371658,1763502950961,-500.0,0.00016467,2]
[394371659,1763502950971,-403.50249142,0.00016467,2]
[394371660,1763502950984,-500.0,0.00016467,2]
[394371661,1763502950994,-300.0,0.00016468,2]
[394371662,1763502951004,-300.0,0.00016468,2]
[394371663,1763502951013,-300.0,0.00016468,2]
[394371664,1763502951024,-300.0,0.00016468,2]
[394371665,1763502951033,-300.0,0.00016468,2]
[394371666,1763502951042,-300.0,0.00016468,2]
[394371667,1763502951052,-300.0,0.00016468,2]
[394371668,1763502951062,-300.0,0.00016468,2]
[394371669,1763502951072,-268.01214126,0.00016468,2]
[394371670,1763502954536,-31.98785874,0.00016468,2]
[394371671,1763502954570,-300.0,0.00016468,2]
[394371672,1763502954602,-300.0,0.00016468,2]
[394371673,1763502954634,-300.0,0.00016468,2]
[394371674,1763502954667,-300.0,0.00016468,2]
[394371675,1763502954698,-300.0,0.00016468,2]